Cogmind - Beta 13 @@@ ROGUE MODE // 2024.07.02 @ 23:24:36 Player: Juicifer Result: Destroyed self with Grenade Launcher Performance ------------- Evolutions (0) 0 Regions Visited (2) 400 Robots Destroyed (14) 70 Value Destroyed (295) 295 Prototype IDs (0) 0 Alien Tech Used (0) 0 Bonus (0) 0 TOTAL SCORE: 765 Bonus ------- None Cogmind --------- Core Integrity 0/250 Matter 210/300 Energy 85/125 System Corruption 0% Temperature Cool (0) Movement Core (150) Ox2 Location -10/Mines Parts ------- > --- POWER (1) -------- Light Ion Engine > --- PROPULSION (2) --- (None) > --- UTILITY (2) ------ Signal Interpreter Seismic Detector > --- WEAPON (2) ------- Grenade Launcher > --- INVENTORY (5) ---- Ion Engine Heat Sink Large Matter Pod (0) Improved Terrain Scanner Peak State ------------ > --- POWER ------------ Light Nuclear Core > --- PROPULSION ------- Aluminum Leg Aluminum Leg > --- UTILITY ---------- Heat Sink Signal Interpreter > --- WEAPON ----------- Particle Gun > --- INVENTORY -------- Ion Engine Large Matter Pod Grenade Launcher Mining Laser [Rating: 9] Favorites ----------- Power Light Ion Engine Engine Light Ion Engine Power Core Light Nuclear Core Propulsion Aluminum Leg Leg Aluminum Leg Wheel Wheel Utility Seismic Detector Device Seismic Detector Processor Signal Interpreter Weapon Small Laser Energy Gun Small Laser Ballistic Gun Assault Rifle Launcher Grenade Launcher Special Weapon Mining Laser Special Melee Weapon Datajack Build | -11 -10 -10 ------- Run | Yrd Mat Min Slots Evolved . | . . . Power . | . . . Propulsion . | . . . Utility . | . . . Weapon . | . . . Parts Attached 31 | 9 11 11 Power 8 | 2 4 2 Engine 7 | 2 4 1 Core 1 | . . 1 Reactor . | . . . Propulsion 8 | 4 2 2 Treads . | . . . Leg 6 | 2 2 2 Wheel 2 | 2 . . Hover . | . . . Flight . | . . . Utility 6 | 1 3 2 Device 5 | 1 2 2 Storage . | . . . Processor 1 | . 1 . Hackware . | . . . Protection . | . . . Artifact . | . . . Weapon 9 | 2 2 5 Energy Gun 2 | 1 . 1 Energy Cannon . | . . . Ballistic Gun 2 | 1 1 . Ballistic Cannon . | . . . Launcher 2 | . 1 1 Special Weapon 2 | . . 2 Impact Weapon . | . . . Slashing Weapon . | . . . Piercing Weapon . | . . . Special Melee Weapon 1 | . . 1 Unidentified Prototypes . | . . . Parts Lost 12 | . 3 9 Power 4 | . 2 2 Propulsion 4 | . 1 3 Utility 1 | . . 1 Weapon 3 | . . 3 Highest Loss Streak 4 | . 2 4 To Critical Strikes . | . . . Average Slot Usage (%) 90 | . 93 83 Engine 10 | . 13 5 Core 1 | . . 3 Leg 27 | . 27 27 Device 19 | . 22 13 Processor 4 | . . 14 Energy Gun 10 | . 11 6 Ballistic Gun 10 | . 12 5 Launcher 3 | . 3 3 Naked Turns . | . . . Heaviest Build 9 | 7 9 9 Greatest Support 20 | 20 20 20 Greatest Overweight (x) . | . . . Average Overweight (x) . | . . . Largest Inventory Capacity 5 | 5 5 5 Average Capacity 5 | 5 5 5 Most Carried 5 | 5 5 5 Average Carried 2 | 2 2 3 Final Capacity 5 | 5 5 5 Final Carried 4 | 2 4 4 Class Distribution -------------------- 64% | Scavenger-Mutant 35% | Mutant Dominant Class ---------------- Scavenger-Mutant | -10/Materials Scavenger-Mutant | -10/Mines Resources | -11 -10 -10 ----------- Run | Yrd Mat Min Matter Collected 600 | 298 171 131 Remotely . | . . . Salvage Created 445 | 86 253 106 Parts 35 | 12 17 6 Haulers Intercepted 1 | . 1 . Recyclers Shooed . | . . . Parts Field Recycled . | . . . Retrieved Matter . | . . . Parts Self-Destructed . | . . . Prevented . | . . . Kills | -11 -10 -10 ------- Run | Yrd Mat Min Combat Hostiles Destroyed 12 | 1 6 5 Guns 10 | 1 5 4 AOE 2 | . 1 1 Classes Destroyed 7 | 2 4 1 Tunneler 2 | 2 . . Hauler 1 | . 1 . Recycler 1 | . 1 . Watcher 1 | . 1 . Swarmer 3 | . 3 . Grunt 6 | 1 3 2 Assembled 3 | . . 3 Best Kill Streak 4 | 3 4 2 Combat Bots Only 3 | 1 3 2 Max Kills in Single Turn 1 | 1 1 1 Gunslinging . | . . . Exploded 1 | . 1 1 Melee . | . . . Uniques/NPCs Destroyed . | . . . Combat | -11 -10 -10 -------- Run | Yrd Mat Min Hostile Shots Fired 115 | 3 50 62 Missed 29 | 1 16 12 Damage Taken 1166 | 22 357 787 Core 256 | . 49 207 Absorbed by Shields . | . . . Core Remaining (%) 100 | 100 . . Volleys Fired 99 | 6 37 56 Largest 2 | 2 2 2 Hottest 130 | 60 60 130 Shots Fired 143 | 12 72 59 Gun 131 | 12 69 50 Cannon . | . . . Launcher 9 | . 3 6 Special 3 | . . 3 Kinetic 75 | 6 37 32 Thermal 59 | 6 32 21 Explosive 9 | . 3 6 Electromagnetic . | . . . Robot Hit Streak 8 | 4 6 8 Robot Miss Streak 4 | 2 4 3 Penetration Max . | . . . Secondary Targets 1 | . 1 . Max Gunslinging Chain 1 | . 1 . Shots Hit Robots 84 | 7 40 37 Core Hits 30 | 4 14 12 Critical Kills . | . . . Critical Parts Destroyed . | . . . Critical Strikes 2 | . . 2 Burn 2 | . . 2 Melee Attacks 1 | . . 1 Impact . | . . . Slashing . | . . . Piercing . | . . . Sneak Attacks . | . . . Combat Hostiles . | . . . Follow-up Attacks . | . . . Damage Inflicted 1024 | 99 526 399 Guns 856 | 99 409 348 Cannons . | . . . Explosions 168 | . 117 51 Melee . | . . . Ramming . | . . . Kinetic 483 | 64 233 186 Thermal 373 | 35 176 162 Explosive 168 | . 117 51 Electromagnetic . | . . . Impact . | . . . Slashing . | . . . Piercing . | . . . Highest Corruption . | . . . Average Corruption . | . . . Corruption Purged . | . . . Corruption Blocked . | . . . Overload Shots . | . . . Overflow Damage 37 | . 13 24 Projectiles . | . . . Explosions 37 | . 13 24 Melee . | . . . Knockbacks . | . . . Impact . | . . . Kinetic . | . . . Secondary . | . . . Self-Inflicted Damage 107 | . . 107 Shots 4 | . . 4 Rammed . | . . . Targets Rammed 1 | . 1 . Kicked 1 | . 1 . Crushed . | . . . Highest Temperature 67 | 6 67 40 Average Temperature 21 | 6 27 16 Received Heat Transfer 447 | 12 174 261 Siege Activations . | . . . Robots Corrupted . | . . . Combat Hostiles . | . . . Parts Fried . | . . . Impact Corruptions . | . . . Robots Melted . | . . . Combat Hostiles . | . . . Parts Melted . | . . . Heat Transferred 993 | 75 400 518 Parts Sabotaged . | . . . Parts Stolen . | . . . Parts Stripped . | . . . Power Chain Reactions . | . . . Alert | -11 -10 -10 ------- Run | Yrd Mat Min Peak Influence 173 | 30 173 51 Initial 25 | . 19 25 Average 52 | 9 67 35 Maximum Alert Level . | . . . Low Security (%) 100 | 100 100 100 Level 1 . | . . . Level 2 . | . . . Level 3 . | . . . Level 4 . | . . . Level 5 . | . . . High Security . | . . . Max Security . | . . . Squads Dispatched 3 | . 3 . Investigation 1 | . 1 . Extermination . | . . . Reinforcement 2 | . 2 . Assault . | . . . Garrison . | . . . Intercept . | . . . Searches Triggered . | . . . Construction Impeded . | . . . Haulers Reinforced . | . . . Active Scanning Responses . | . . . Cargo Convoy Interrupts . | . . . Stealth | -11 -10 -10 --------- Run | Yrd Mat Min Distress Signals . | . . . Communications Jammed . | . . . Distress Signals . | . . . Times Spotted 18 | 1 10 7 Peak Tracking Total 3 | 1 3 2 Tactical Retreats 2 | . . 2 Traps | -11 -10 -10 ------- Run | Yrd Mat Min Traps Triggered . | . . . Indirectly . | . . . Trap Hack Attempts . | . . . Triggered . | . . . Disarmed . | . . . Reprogrammed . | . . . Reused . | . . . Traps Extracted . | . . . Installed . | . . . Triggered . | . . . Machines | -11 -10 -10 ---------- Run | Yrd Mat Min Machines Disabled 1 | . 1 . Max in Single Turn 1 | . 1 . Machines Repaired . | . . . Machines Dismantled . | . . . Machines Sabotaged . | . . . Overloaded Fab Kills . | . . . Hacking | -11 -10 -10 --------- Run | Yrd Mat Min Machines Accessed 3 | . 3 . Terminals 1 | . 1 . Fabricators . | . . . Repair Stations 1 | . 1 . Recycling Units 1 | . 1 . Scanalyzers . | . . . Garrison Access . | . . . Total Hacks 9 | . 9 . Successful 6 | . 6 . Failed 3 | . 3 . Catastrophic 1 | . 1 . Database Lockouts . | . . . Manual . | . . . Terminals 3 | . 3 . Fabricators . | . . . Repair Stations 3 | . 3 . Recycling Units 3 | . 3 . Scanalyzers . | . . . Garrison Access . | . . . Terminal Hacks 2 | . 2 . Record 1 | . 1 . Zone Layout 1 | . 1 . Fabricator Hacks . | . . . Repair Station Hacks 1 | . 1 . Scan Component 1 | . 1 . Recycling Unit Hacks 3 | . 3 . Recycle Component 1 | . 1 . Process 1 | . 1 . Report Inventory 1 | . 1 . Scanalyzer . | . . . Garrison Access Hacks . | . . . Unauthorized Hacks . | . . . Terminals . | . . . Fabricators . | . . . Repair Stations . | . . . Recycling Units . | . . . Scanalyzers . | . . . Garrison Access . | . . . Data Cores Recovered . | . . . Used . | . . . Hacking Detections 3 | . 3 . Full Trace Events 2 | . 2 . Feedback Events . | . . . Feedback Blocked . | . . . Robot Schematics Acquired . | . . . Robots Built . | . . . Authchips . | . . . Time . | . . . Total Robot Build Rating . | . . . Part Schematics Acquired . | . . . Parts Built . | . . . Authchips . | . . . Time . | . . . Total Part Build Rating . | . . . Parts Repaired . | . . . Time . | . . . Parts Recycled 1 | . 1 . Recycled Matter 189 | . 189 . Retrieved Matter . | . . . Retrieved Components . | . . . Parts Scanalyzed . | . . . Part Schematics Acquired . | . . . Parts Damaged . | . . . Bothacking | -11 -10 -10 ------------ Run | Yrd Mat Min Used RIF Installer . | . . . Robots Hacked . | . . . Non-combat . | . . . Combat . | . . . Robot Hacks Applied . | . . . Relay Couplers Released . | . . . Fabnet Peak Effective % . | . . . Robots Rewired . | . . . Allies Hacked . | . . . Hacks Repelled . | . . . Allies | -11 -10 -10 -------- Run | Yrd Mat Min Total Allies . | . . . Largest Group . | . . . Highest-Rated Group . | . . . Highest-Rated Ally . | . . . Total Orders . | . . . Ally Attacks . | . . . Total Damage . | . . . Kills . | . . . Allies Corrupted . | . . . Allies Melted . | . . . Intel | -11 -10 -10 ------- Run | Yrd Mat Min Robot Analysis Total . | . . . Derelict Logs Recovered . | . . . Drone Launches . | . . . Drone Recoveries . | . . . Exploration | -11 -10 -10 ------------- Run | Yrd Mat Min Turns Passed 1127 | 122 686 319 Spaces Moved 649 | 84 410 155 Core 25 | 25 . . Treads . | . . . Legs 624 | 59 410 155 Wheels . | . . . Hover . | . . . Flight . | . . . Fastest Speed 50 | 50 120 120 Average Speed 117 | 99 120 120 Slowest Speed 120 | 120 120 120 Overloaded Moves . | . . . Propulsion Burnouts . | . . . Robots Hopped . | . . . Cave-ins Triggered . | . . . Exploration Rate (%) 27 | 9 41 32 Regions Visited 2 Branch Regions 1 Pre-discovered Areas . | . . . Known Exits Taken 1 | . 1 . Unknown Exits Taken 1 | 1 . . Scrap Searched . | . . . Spaces Dug 2 | . . 2 Terrain Destroyed 32 | . 5 27 Melee . | . . . Projectile 2 | . . 2 AOE 30 | . 5 25 Terrain Rammed . | . . . Walls Destroyed . | . . . Machines Disabled . | . . . Actions | -11 -10 -10 --------- Run | Yrd Mat Min Total 884 | 112 536 236 Wait 59 | . 59 . Move 647 | 83 409 155 Hop . | . . . Pick Up 29 | 10 11 8 Fast Attach 1 | . 1 . Attach 29 | 8 10 11 Detach 8 | 2 3 3 Swap 1 | 1 . . Drop 9 | 2 5 2 Fire 99 | 6 37 56 Melee 1 | . . 1 Ram . | . . . Kick 1 | . 1 . Crush . | . . . Escape Stasis . | . . . Rewire . | . . . Trap . | . . . Miscellaneous . | . . . Route ------- -11/Scrapyard -10/Materials -10/Mines (discovered 1 exit: [*Sub]) History --------- Turn | Location | Event 2 | -11/Scrapyard | Met Revision 17 70 | -11/Scrapyard | Discovered new exit (range 8) 123 | -11/Scrapyard | Entered Materials 330 | -10/Materials | Build established: Mutant 680 | -10/Materials | Build established: Scavenger-Mutant 772 | -10/Materials | Discovered new exit (range 9) 808 | -10/Materials | Identified exit to Mines 809 | -10/Materials | Entered Mines 825 | -10/Mines | Assembled infested the area 902 | -10/Mines | Core integrity fell below 50% 952 | -10/Mines | Lost 4 parts (1p1n1u1w) 1028 | -10/Mines | Core integrity fell below 20% 1124 | -10/Mines | Discovered new exit (range 5) 1128 | -10/Mines | Destroyed self with Grenade Launcher Last Messages --------------- Acquired 5 matter. Knocked back. as-76657 destroyed. Acquired 12 matter. Destroyed Asb. F-torch. Particle Gun destroyed. as-26739 destroyed. Acquired Seismic Detector. Acquired Imp. Terrain Scanner. Acquired 25 matter. Acquired Lgt. Ion Engine. Aluminum Leg destroyed. Destroyed Aluminum Leg. The unstable cave ceiling collapses. EXIT=FOUND Aluminum Leg destroyed. Destroyed Aluminum Leg. Mining Laser destroyed. Destroyed Mining Laser. [Achievement: First Step to Greatness] Map ----- +----------------------------------------------------+ | | | | | | | | | | | | | | | | | | | | | | | | | | | | | | | ??????????????????????????????????????? | | ??????????????????????????????????????? | | ??????????????????????????????????????? | | ??????????????????????????????????????? | | ??????????????????????????????????????? | | ??????????????????????????????????????? | | ?????????????#####????????????????????? | | ??????????#### ?????????????????????? | | ??????????# <#?????????????????????? | | ?????????## ;#?????????????????????? | | ?????????# @#??????????????????????? | | ?????????# ##?????????????????????? | | ?????????# #?????????????????????? | | ?????????## ##?????????????????????? | | ??????????# #??????????????????????? | | ??????????##= ##??????????????????????? | | ??????????## ##??????????????????????? | | ??????????# #??????????????????????? | | ??????????# ##?????????????????????? | | ??????????# =##????????????????????? | | ??????????# |%####?????????????????? | | ?????????## ##????????????????? | | ????###?## #????????????????? | | ???## ## #????????????????? | | ???# ##????????????????? | | ???# #?????????????????? | | ???# ## ##???????????????? | | ??# ## ##??????????????? | | ??# # ## #??????????????? | | ??## ## ## #??????????? | | ???######### ## ?????????? | | ???????????# ## ?????????? | | ???????????# #??????????? | | ??????????## ### ## ##?????????? | | ?????????## #??? ##?# ####??????? | +----------------------------------------------------+ Best States ------------- Heat Dissipation 35 Energy Generation 14 Energy Capacity 160 Matter Stores 300 Matter Capacity 300 Sight Range 16 Terrain Scan Density 10 Evasion (%) 55 Item Schematics ----------------- None Robot Schematics ------------------ None Fabricated ------------ Nothing Alien Tech Used ----------------- None Achievements -------------- First Step to Greatness Loot Pinata One Hack Too Far Uninvited Guest Challenges ------------ None Game ------ Seed NeutrinoMicrowarpActivator Manual? 0 Play Time 00:32:32 Cumulative 0.5 hours Start 2024.07.02 @ 22:52:47 End 2024.07.02 @ 23:24:36 Sessions 1 Manual Loads 0 Difficulty Rogue Special Mode None Game No. 1 Rogue 1 Adventurer 0 Explorer 0 Win Type - Total 0 Types 0/0/0/0/0/0/0/0/0 Lore% 0 Gallery% 1 Achievement% 1 Wizard Run 0 Options --------- Layout 1 ASCII 1 Keyboard 0 Movement Mouse Keybinds 0 Fullscreen 1 Font 24/Crisp Map View 50x35 Zoom Use 0% Tactical HUD 0 Map Filters NONE Filters NONE Steam 1 RUN: 289269af-fa19-4363-9ff6-46a07dcdd321